Cogmind - Beta 10.1 *** ADVENTURER MODE // 2020.09.21 @ 20:59:20 Player: Azormik Result: Destroyed by G-47 Trooper with Particle Gun Performance ------------- Evolutions (3) 1500 Regions Visited (6) 1200 Robots Destroyed (63) 315 Value Destroyed (2344) 2344 Prototype IDs (1) 20 Alien Tech Used (0) 0 Bonus (200) 200 TOTAL SCORE: 5579 Bonus ------- Pacifist 200 Cogmind --------- Core Integrity 0/700 Matter 213/300 Energy 96/100 System Corruption 2% Temperature Cool (9) Movement Core (400) Ox7 Location -7/Factory Parts ------- > --- POWER (3) -------- (None) > --- PROPULSION (3) --- (None) > --- UTILITY (3) ------ Large Storage Unit > --- WEAPON (4) ------- Mini Assault Cannon Grenade Launcher > --- INVENTORY (10) --- Wheel Small Storage Unit Heavy Assault Rifle Gauss Cannon Heavy Mace Peak State ------------ > --- POWER ------------ Deuterium Engine Nuclear Core Improved Deuterium Engine > --- PROPULSION ------- Light Treads Light Treads Light Treads > --- UTILITY ---------- Improved Heat Sink Large Storage Unit Long-range Tractor Beam > --- WEAPON ----------- Heavy Laser Minigun Katana > --- INVENTORY -------- Wheel Small Storage Unit Heavy Assault Rifle Heavy Assault Rifle Heavy Assault Rifle Gauss Cannon Mini Assault Cannon Grenade Launcher Heavy Mace [Rating: 32] Favorites ----------- Power Light Nuclear Core Engine Light Ion Engine Power Core Light Nuclear Core Propulsion Light Treads Treads Light Treads Leg Aluminum Leg Wheel Wheel Utility Large Storage Unit Device Improved Heat Sink Storage Large Storage Unit Weapon Katana Energy Gun Medium Laser Energy Cannon Heavy Particle Cannon Ballistic Gun Minigun Ballistic Cannon Gauss Cannon Launcher Grenade Launcher Special Weapon Welding Torch Impact Weapon Heavy Mace Slashing Weapon Katana Build | -11 -10 -9 -9 -8 -8 -7 ------- Run | Scr Mat Mat Min Mat Sto Fac Slots Evolved 6 | . . 2 . 2 . 2 Power 2 | . . . . 1 . 1 Propulsion 1 | . . 1 . . . . Utility 1 | . . . . . . 1 Weapon 2 | . . 1 . 1 . . Parts Attached 58 | 6 1 3 4 13 13 18 Power 9 | 1 . . . 2 2 4 Engine 5 | 1 . . . 2 . 2 Core 4 | . . . . . 2 2 Reactor . | . . . . . . . Propulsion 16 | 2 . . 3 3 5 3 Treads 7 | 2 . . . . 3 2 Leg 6 | . . . 3 3 . . Wheel 3 | . . . . . 2 1 Hover . | . . . . . . . Flight . | . . . . . . . Utility 7 | 1 1 1 . 1 1 2 Device 4 | . . 1 . . 1 2 Storage 3 | 1 1 . . 1 . . Processor . | . . . . . . . Hackware . | . . . . . . . Protection . | . . . . . . . Artifact . | . . . . . . . Weapon 26 | 2 . 2 1 7 5 9 Energy Gun 8 | 2 . . . 4 1 1 Energy Cannon 1 | . . . . . 1 . Ballistic Gun 7 | . . 1 . . 1 5 Ballistic Cannon 3 | . . . . 1 . 2 Launcher 2 | . . 1 . . . 1 Special Weapon 2 | . . . 1 . 1 . Impact Weapon 1 | . . . . 1 . . Slashing Weapon 2 | . . . . 1 1 . Piercing Weapon . | . . . . . . . Special Melee Weapon . | . . . . . . . Unidentified Prototypes 1 | . . . . . . 1 Parts Lost 33 | . . . 1 5 7 20 Power 8 | . . . . . 2 6 Propulsion 9 | . . . 1 2 1 5 Utility 4 | . . . . 1 . 3 Weapon 12 | . . . . 2 4 6 Highest Loss Streak 7 | . . . 1 4 6 7 Average Slot Usage (%) 81 | . 85 83 87 82 89 73 Engine 6 | . 14 11 11 11 1 3 Core 5 | . . . . . 10 8 Treads 14 | . 28 22 16 . 6 19 Leg 6 | . . . 5 21 11 . Wheel 1 | . . . . . 6 . Device 7 | . . 9 11 3 7 9 Storage 9 | . 14 11 11 11 10 7 Energy Gun 8 | . 28 22 11 15 1 2 Energy Cannon 2 | . . . . . 7 2 Ballistic Gun 6 | . . . 11 9 7 7 Ballistic Cannon 3 | . . . . 5 9 2 Launcher 1 | . . 7 6 . . . Slashing Weapon 4 | . . . . 3 8 6 Naked Turns . | . . . . . . . Heaviest Build 55 | 11 23 27 26 40 45 55 Greatest Support 60 | 40 40 40 40 37 60 60 Greatest Overweight (x) 15 | . . . 1 3 3 15 Average Overweight (x) . | . . . . . . . Largest Inventory Capacity 12 | 6 12 10 10 12 12 10 Average Capacity 9 | 5 6 10 10 10 10 10 Most Carried 10 | 4 3 4 7 8 10 10 Average Carried 5 | 1 1 1 3 5 7 8 Final Capacity 12 | 6 10 10 10 12 10 10 Final Carried 8 | 1 2 3 5 8 8 5 Class Distribution -------------------- 31% | Scavenger-Gunner 31% | Scavenger-Mutant 27% | Mutant 4% | Gunner 4% | Skirmisher Dominant Class ---------------- Mutant | -10/Materials Mutant | -9/Materials Mutant | -9/Mines Gunner | -8/Materials Scavenger-Gunner | -8/Storage Scavenger-Mutant | -7/Factory Resources | -11 -10 -9 -9 -8 -8 -7 ----------- Run | Scr Mat Mat Min Mat Sto Fac Matter Collected 1312 | 221 . 10 174 190 354 363 Remotely 174 | . . . . . . 174 Salvage Created 2429 | . . 73 231 414 747 964 Parts 143 | . . 1 16 27 49 50 Haulers Intercepted 1 | . . . . . 1 . Recyclers Shooed 3 | 1 . . . 1 . 1 Parts Field Recycled . | . . . . . . . Retrieved Matter . | . . . . . . . Parts Self-Destructed . | . . . . . . . Prevented . | . . . . . . . Kills | -11 -10 -9 -9 -8 -8 -7 ------- Run | Scr Mat Mat Min Mat Sto Fac Combat Hostiles Destroyed 53 | . . 6 6 8 14 19 Guns 23 | . . . 3 8 2 10 Cannons 21 | . . . . . 12 9 AOE 9 | . . 6 3 . . . Classes Destroyed 12 | . . 2 1 4 3 2 Worker 1 | . . . . . . 1 Builder 2 | . . . . 1 1 . Hauler 1 | . . . . . 1 . Recycler 3 | . . . . 1 . 2 Operator 1 | . . . . . 1 . Watcher 2 | . . . . . 2 . Swarmer 7 | . . . . 2 . 5 Grunt 30 | . . 4 5 5 6 10 Duelist 3 | . . . 1 . 1 1 Sentry 10 | . . 2 . . 7 1 Hunter 2 | . . . . 1 . 1 Programmer 1 | . . . . . . 1 Best Kill Streak 10 | . . 5 3 4 10 6 Combat Bots Only 7 | . . 5 3 3 7 6 Max Kills in Single Turn 2 | . . 2 2 1 2 1 Gunslinging . | . . . . . . . Exploded 2 | . . 2 2 . . . Melee . | . . . . . . . Uniques/NPCs Destroyed . | . . . . . . . Combat | -11 -10 -9 -9 -8 -8 -7 -------- Run | Scr Mat Mat Min Mat Sto Fac Damage Taken 4189 | 3 . 145 289 415 791 2546 Core 875 | 3 . 9 8 58 88 709 Absorbed by Shields . | . . . . . . . Core Remaining (%) 91 | 98 98 . 95 . 73 . Volleys Fired 156 | . . 9 12 24 36 75 Largest 4 | . . 1 3 4 3 3 Hottest 178 | . . 30 90 178 163 117 Shots Fired 310 | . . 9 27 66 81 127 Gun 190 | . . . 22 60 28 80 Cannon 102 | . . . . 6 50 46 Launcher 12 | . . 9 2 . . 1 Special 6 | . . . 3 . 3 . Kinetic 176 | . . . 12 29 49 86 Thermal 96 | . . . 13 13 30 40 Explosive 12 | . . 9 2 . . 1 Electromagnetic 26 | . . . . 24 2 . Robot Hit Streak 29 | . . 7 24 29 13 28 Robot Miss Streak 3 | . . . 1 2 2 3 Penetration Max 1 | . . . . . 1 . Secondary Targets 6 | . . . 1 3 . 2 Max Gunslinging Chain 1 | . . . 1 1 . 1 Shots Hit Robots 233 | . . 7 24 52 54 96 Core Hits 123 | 2 . 14 12 25 28 42 Critical Hits 10 | . . . 1 1 5 3 Critical Kills 3 | . . . 1 . 1 1 Critical Parts Destroyed 6 | . . . . 1 3 2 Melee Attacks . | . . . . . . . Impact . | . . . . . . . Slashing . | . . . . . . . Piercing . | . . . . . . . Sneak Attacks . | . . . . . . . Combat Hostiles . | . . . . . . . Follow-up Attacks . | . . . . . . . Damage Inflicted 5126 | 7 . 584 336 686 1482 2031 Guns 2146 | . . . 192 536 285 1133 Cannons 2017 | . . . . 81 1098 838 Explosions 800 | . . 584 130 64 . 22 Melee . | . . . . . . . Ramming 149 | 7 . . 9 5 90 38 Kinetic 2470 | . . . 94 230 902 1244 Thermal 1494 | . . . 103 191 473 727 Explosive 736 | . . 584 130 . . 22 Electromagnetic 277 | . . . . 260 17 . Impact . | . . . . . . . Slashing . | . . . . . . . Piercing . | . . . . . . . Highest Corruption 2 | . . . . . . 2 Average Corruption 1 | . . . . . . 1 Corruption Purged . | . . . . . . . Effects 5 | . . . . . . 5 Message Errors 1 | . . . . . . 1 Heat Flow Errors 1 | . . . . . . 1 Targeting Errors 3 | . . . . . . 3 Overload Shots . | . . . . . . . Overflow Damage 25 | . . . . 19 . 6 Projectiles 3 | . . . . . . 3 Explosions 19 | . . . . 19 . . Melee 3 | . . . . . . 3 Knockbacks 8 | . . . . . 2 6 Impact . | . . . . . . . Kinetic 7 | . . . . . 2 5 Secondary 1 | . . . . . . 1 Self-Inflicted Damage 32 | 3 . . . . 25 4 Shots . | . . . . . . . Rammed 18 | 2 . . 2 1 5 8 Targets Rammed 25 | 2 . . 2 2 11 8 Kicked 7 | . . . . 1 6 . Crushed . | . . . . . . . Highest Temperature 515 | . . 2 230 304 515 417 Average Temperature 138 | . . 1 116 96 134 166 Received Heat Transfer 1602 | . . 72 132 216 279 903 Effects 15 | . . . . 1 4 10 Shutdowns 4 | . . . . . 1 3 Energy Bleed 3 | . . . . 1 . 2 Interference 5 | . . . . . 1 4 Matter Decay 1 | . . . . . . 1 Damage (minor) 2 | . . . . . 2 . Siege Activations . | . . . . . . . Robots Corrupted . | . . . . . . . Combat Hostiles . | . . . . . . . Parts Fried 1 | . . . . 1 . . Impact Corruptions 1 | . . . . . . 1 Robots Melted . | . . . . . . . Combat Hostiles . | . . . . . . . Parts Melted 1 | . . . . 1 . . Heat Transferred 2802 | . . . 346 346 926 1184 Parts Sabotaged . | . . . . . . . Parts Stolen . | . . . . . . . Parts Stripped . | . . . . . . . Power Chain Reactions 1 | . . . . 1 . . Missiles Intercepted . | . . . . . . . Alert | -11 -10 -9 -9 -8 -8 -7 ------- Run | Scr Mat Mat Min Mat Sto Fac Peak Influence 252 | . . 160 197 243 252 224 Initial 88 | . . . 52 64 15 88 Average 113 | . . 101 159 154 141 97 Maximum Alert Level 1 | . . . . 1 1 1 Low Security (%) 84 | 100 100 100 100 76 61 89 Level 1 15 | . . . . 23 38 10 Level 2 . | . . . . . . . Level 3 . | . . . . . . . Level 4 . | . . . . . . . Level 5 . | . . . . . . . High Security . | . . . . . . . Max Security . | . . . . . . . Squads Dispatched 15 | . . 2 . 2 3 8 Investigation 3 | . . 1 . . . 2 Extermination 1 | . . . . . . 1 Reinforcement 5 | . . 1 . 2 . 2 Assault . | . . . . . . . Garrison 6 | . . . . . 3 3 Intercept . | . . . . . . . Construction Impeded 1 | . . . . . . 1 Haulers Reinforced 1 | . . . . . . 1 Stealth | -11 -10 -9 -9 -8 -8 -7 --------- Run | Scr Mat Mat Min Mat Sto Fac Distress Signals 7 | . . . . 1 3 3 Communications Jammed . | . . . . . . . Distress Signals . | . . . . . . . Times Spotted 81 | . 1 7 4 18 19 32 Peak Tracking Total 7 | . 2 6 3 4 6 7 Tactical Retreats 8 | . . . . 3 2 3 Traps | -11 -10 -9 -9 -8 -8 -7 ------- Run | Scr Mat Mat Min Mat Sto Fac Traps Triggered 4 | . . 1 . . . 3 Indirectly . | . . . . . . . Trap Hack Attempts . | . . . . . . . Triggered . | . . . . . . . Disarmed . | . . . . . . . Reprogrammed . | . . . . . . . Reused . | . . . . . . . Traps Extracted . | . . . . . . . Installed . | . . . . . . . Triggered . | . . . . . . . Machines | -11 -10 -9 -9 -8 -8 -7 ---------- Run | Scr Mat Mat Min Mat Sto Fac Machines Disabled 1 | . . . . 1 . . Max in Single Turn 1 | . . . . 1 . . Machines Sabotaged . | . . . . . . . Garrisons Compromised . | . . . . . . . Overloaded Fab Kills . | . . . . . . . Fab Network Shutdowns . | . . . . . . . Hacking | -11 -10 -9 -9 -8 -8 -7 --------- Run | Scr Mat Mat Min Mat Sto Fac Machines Accessed 6 | . 2 . . 1 2 1 Terminals 6 | . 2 . . 1 2 1 Fabricators . | . . . . . . . Repair Stations . | . . . . . . . Recycling Units . | . . . . . . . Scanalyzers . | . . . . . . . Garrison Access . | . . . . . . . Total Hacks 8 | . 2 . . 1 2 3 Successful 7 | . 1 . . 1 2 3 Failed 1 | . 1 . . . . . Catastrophic . | . . . . . . . Database Lockouts . | . . . . . . . Manual . | . . . . . . . Terminals 8 | . 2 . . 1 2 3 Fabricators . | . . . . . . . Repair Stations . | . . . . . . . Recycling Units . | . . . . . . . Scanalyzers . | . . . . . . . Garrison Access . | . . . . . . . Terminal Hacks 7 | . 1 . . 1 2 3 Record 3 | . . . . 1 . 2 Part Schematic 1 | . . . . . . 1 Open Door 1 | . . . . . 1 . Locate Traps 1 | . 1 . . . . . Hauler Manifests 1 | . . . . . 1 . Fabricator Hacks . | . . . . . . . Repair Station Hacks . | . . . . . . . Recycling Unit Hacks . | . . . . . . . Scanalyzer . | . . . . . . . Garrison Access Hacks . | . . . . . . . Unauthorized Hacks . | . . . . . . . Terminals . | . . . . . . . Fabricators . | . . . . . . . Repair Stations . | . . . . . . . Recycling Units . | . . . . . . . Scanalyzers . | . . . . . . . Garrison Access . | . . . . . . . Data Cores Recovered 1 | . . . . . 1 . Used . | . . . . . . . Hacking Detections 2 | . . . . . 1 1 Full Trace Events . | . . . . . . . Feedback Events . | . . . . . . . Feedback Blocked . | . . . . . . . Robot Schematics Acquired . | . . . . . . . Robots Built . | . . . . . . . Matter . | . . . . . . . Time . | . . . . . . . Total Robot Build Rating . | . . . . . . . Part Schematics Acquired 1 | . . . . . . 1 Parts Built . | . . . . . . . Matter . | . . . . . . . Time . | . . . . . . . Total Part Build Rating . | . . . . . . . Parts Repaired . | . . . . . . . Time . | . . . . . . . Parts Recycled . | . . . . . . . Recycled Matter . | . . . . . . . Retrieved Matter . | . . . . . . . Retrieved Components . | . . . . . . . Parts Scanalyzed . | . . . . . . . Part Schematics Acquired . | . . . . . . . Parts Damaged . | . . . . . . . Bothacking | -11 -10 -9 -9 -8 -8 -7 ------------ Run | Scr Mat Mat Min Mat Sto Fac Used RIF Installer . | . . . . . . . Robots Hacked . | . . . . . . . Non-combat . | . . . . . . . Combat . | . . . . . . . Robot Hacks Applied . | . . . . . . . Relay Couplers Released . | . . . . . . . Robots Rewired . | . . . . . . . Allies Hacked . | . . . . . . . Hacks Repelled . | . . . . . . . Allies | -11 -10 -9 -9 -8 -8 -7 -------- Run | Scr Mat Mat Min Mat Sto Fac Total Allies . | . . . . . . . Largest Group . | . . . . . . . Highest-Rated Group . | . . . . . . . Highest-Rated Ally . | . . . . . . . Total Orders . | . . . . . . . Ally Attacks . | . . . . . . . Total Damage . | . . . . . . . Kills . | . . . . . . . Allies Corrupted . | . . . . . . . Allies Melted . | . . . . . . . Intel | -11 -10 -9 -9 -8 -8 -7 ------- Run | Scr Mat Mat Min Mat Sto Fac Robot Analysis Total . | . . . . . . . Derelict Logs Recovered . | . . . . . . . Drone Launches . | . . . . . . . Drone Recoveries . | . . . . . . . Exploration | -11 -10 -9 -9 -8 -8 -7 ------------- Run | Scr Mat Mat Min Mat Sto Fac Turns Passed 3172 | 93 215 257 369 469 682 1087 Spaces Moved 1731 | 71 133 142 208 233 429 515 Core 37 | 30 . . . . . 7 Treads 1058 | 41 133 142 161 . 101 480 Legs 408 | . . . 47 233 128 . Wheels 228 | . . . . . 200 28 Hover . | . . . . . . . Flight . | . . . . . . . Fastest Speed 50 | 50 160 160 120 120 90 110 Average Speed 147 | 113 160 160 154 146 124 163 Slowest Speed 800 | 160 160 160 180 210 180 800 Overloaded Moves . | . . . . . . . Propulsion Burnouts . | . . . . . . . Robots Hopped . | . . . . . . . Cave-ins Triggered . | . . . . . . . Exploration Rate (%) 22 | 4 30 12 24 21 54 9 Regions Visited 6 Branch Regions 2 Pre-discovered Areas . | . . . . . . . Known Exits Taken . | . . . . . . . Unknown Exits Taken 6 | 1 1 1 1 1 1 . Scrap Searched . | . . . . . . . Spaces Dug . | . . . . . . . Terrain Destroyed 86 | . . 42 12 10 9 13 Melee . | . . . . . . . Projectile 18 | . . . . 4 9 5 AOE 68 | . . 42 12 6 . 8 Terrain Rammed . | . . . . . . . Walls Destroyed . | . . . . . . . Machines Disabled . | . . . . . . . Actions | -11 -10 -9 -9 -8 -8 -7 --------- Run | Scr Mat Mat Min Mat Sto Fac Total 2074 | 83 136 163 231 309 513 639 Wait 47 | . . 6 . 26 6 9 Move 1725 | 70 132 141 207 232 428 515 Hop . | . . . . . . . Pick Up 50 | 5 2 3 5 11 13 11 Fast Attach 3 | 2 . . . . . 1 Attach 42 | 4 1 3 3 8 8 15 Detach 3 | . . 1 . . . 2 Swap 13 | . . . 1 5 5 2 Drop 10 | . 1 . 1 1 6 1 Fire 156 | . . 9 12 24 36 75 Melee . | . . . . . . . Ram 9 | 2 . . . . 3 4 Kick 9 | . . . . 2 7 . Crush 7 | . . . 2 . 1 4 Escape Stasis . | . . . . . . . Rewire . | . . . . . . . Trap . | . . . . . . . Miscellaneous . | . . . . . . . Route ------- -11/Scrapyard -10/Materials -9/Materials -9/Mines -8/Materials -8/Storage -7/Factory History --------- Turn | Location | Event 21 | -11/Scrapyard | Discovered new exit (range 15) 94 | -11/Scrapyard | Entered Materials 295 | -10/Materials | Discovered new exit (range 7) 304 | -10/Materials | Build established: Mutant 309 | -10/Materials | Entered another Materials area 309 | -9/Materials | Evolved 2 slots: Propulsion x1, Weapon x1 439 | -9/Materials | Discovered new exit (range 15) 566 | -9/Materials | Entered Mines 614 | -9/Mines | Discovered new exit (range 8) 935 | -9/Mines | Entered Materials 935 | -8/Materials | Evolved 2 slots: Power x1, Weapon x1 1178 | -8/Materials | Lost 4 parts (2n1u1w) 1330 | -8/Materials | Discovered new exit (range 9) 1404 | -8/Materials | Entered Storage 1459 | -8/Storage | Garrison activated, responded to threat 1508 | -8/Storage | Lost 6 parts (2p4w) 1859 | -8/Storage | Destroyed 7 combat bots 1890 | -8/Storage | Build established: Scavenger-Gunner 2068 | -8/Storage | Discovered new exit (range 8) 2086 | -8/Storage | Entered Factory 2086 | -7/Factory | Evolved 2 slots: Power x1, Utility x1 2620 | -7/Factory | Lost 4 parts (2p1n1w) 2623 | -7/Factory | Build established: Scavenger-Mutant 2915 | -7/Factory | Garrison activated, responded to threat 3041 | -7/Factory | Lost 5 parts (1p2n2w) 3080 | -7/Factory | Core integrity fell below 50% 3115 | -7/Factory | Core integrity fell below 20% 3148 | -7/Factory | Lost 7 parts (3p1n1u2w) 3173 | -7/Factory | Destroyed by G-47 Trooper with Particle Gun Last Messages --------------- Imp. Heat Sink temporarily disabled. Katana destroyed. Acquired Com. Wheel. U-05 Engineer builds a Wall. S-27 Virus destroyed. U-05 Engineer builds a Wall. Acquired 18 matter. Slammed into R-06 Scavenger. Slammed into U-05 Engineer. W-25 Informer distress signal alerts nearby ally. R-06 Scavenger collects Autogun. R-06 Scavenger knocked back. Imp. Heat Sink destroyed. Slammed into G-47 Trooper. Destroyed Backup Laser III. G-47 Trooper system corrupted by crushing effect. S-27 Virus knocked back. Com. Wheel destroyed. System corrupted: Grenade Launcher targeting data glitched. [Achievement: 5k Club] Map ----- +----------------------------------------------------+ | #?????????????????????# #???# ######+ | | #?????????????????????# #???# #????# | | #?????????????????????# ########???# #????# | | ########??????????????# ############+##???# | | #??????????????# # #???# | | #??????????????# # = #???# | | #??????????????# # """ =*!%#???# | | #??????????????# + """ "" """!#???# | | #??????????????# # """ ""F"""%##### | | #### #??????????????# # """""!+ | | # ################ ################ | | # ] =%/[% % % %% ###### | | + ^ !! % % % T | | # ^ % ###### #### | | " # ^ #????#####??? | | " # ^ #???????????? | | " ########################## ## #???????????? | | #??????????????????# # #???????????? | | " #??????????????????# """" # # ??????????? | | " #??????????????????# """" + + ??????????? | | " #??????????????????# """" # # ?????????? | | #??????????????????# """" # #?* ????????? | | ####??????????????????# """" #???????????? | | ??????????????????????# """" #???????????? | | ??????????????????????#r"""" g #???????????? | | ??????????????????????# s@ s #???????????? | | ??????????????????????####g# g #???????????? | | ???????????############### m #???????????? | | ???????????# * # % #???????????? | | ???????????# % # #???????????? | | ???????????? """ ! + #???????????? | | ???????????? """ ]]! %####### #???????????? | | ???????????# """ ][! %%#????? #???????????? | | ???????????# ][ ##????? + ?????????? | | ???????????###############?????? #?? ????????? | | ???????????????????????????????????? #???????????? | | ?????????????????????????????????????#???????????? | | ?????????????????????????????????????????????????? | | ?????????????????????????????????????????????????? | | ?????????????????????????????????????????????????? | | ?????????????????????????????????????????????????? | | ?????????????????????????????????????????????????? | | ?????????????????????????????????????????????????? | | ?????????????????????????????????????????????????? | | ?????????????????????????????????????????????????? | | ?????????????????????????????????????????????????? | | ?????????????????????????????????????????????????? | | ?????????????????????????????????????????????????? | | ?????????????????????????????????????????????????? | | ?????????????????????????????????????????????????? | +----------------------------------------------------+ Best States ------------- Heat Dissipation 48 Energy Generation 34 Energy Capacity 605 Matter Stores 300 Matter Capacity 300 Sight Range 16 Terrain Scan Density 10 Resistance: KI 20 Resistance: TH 20 Resistance: EX 20 Resistance: EM 20 Resistance: I 20 Resistance: S 20 Resistance: P 20 Evasion (%) 50 Recoil Reduction 3 Offensive Hacking 10 Item Schematics ----------------- Lightning Gun | -7/Factory | Hacked Robot Schematics ------------------ None Fabricated ------------ Nothing Alien Tech Used ----------------- None Achievements -------------- 5k Club Please Form A Line Use The Force Challenges ------------ None Game ------ Seed IntegratedAccelerationWheel Manual? 0 Play Time 00:50:28 Cumulative 23.3 hours Start 2020.09.21 @ 20:10:38 End 2020.09.21 @ 20:59:20 Sessions 1 Manual Loads 0 Difficulty Adventurer Special Mode None Game No. 30 Rogue 24 Adventurer 6 Explorer 0 Win Type - Total 0 Types 0/0/0/0/0/0/0/0/0 Lore% 19 Gallery% 15 Achievement% 13 Wizard Run 0 Options --------- ASCII 1 Keyboard 0 Movement Arrows Keybinds 0 Fullscreen 2 Font 18/SmallcapsGlow Map View 76x50 Tactical HUD 0 Map Filters NONE Filters NONE Steam 1 RUN: b27443ca-6058-4a1e-af5e-333c77a741b8